Body,Body Name,Date,Transaction Number,Invoice Number,Amount,Supplier Name,Supplier ID,Expense Area,Expense Type,Expense Code
http://statistics.data.gov.uk/id/local-authority/47UB,Bromsgrove District Council,14/08/2015,3564,C/B0136207,"1,063.75",Civica Uk Limited,1233,Executive Director Of Finance,Agency Staff,3020
http://statistics.data.gov.uk/id/local-authority/47UB,Bromsgrove District Council,21/08/2015,2149,200044520,"243,628.56",Redditch Borough Council,12546,Vat Control Account,Vat Input Tax Adjustments,2994
http://statistics.data.gov.uk/id/local-authority/47UB,Bromsgrove District Council,21/08/2015,2151,200044512,"413,394.42",Redditch Borough Council,12546,Vat Control Account,Vat Input Tax Adjustments,2994
http://statistics.data.gov.uk/id/local-authority/47UB,Bromsgrove District Council,21/08/2015,2229,200052892,"17,680.00",Redditch Borough Council,12546,Capital Schemes Environmental,Other Contract Payments,8155
http://statistics.data.gov.uk/id/local-authority/47UB,Bromsgrove District Council,21/08/2015,2229,200052892,682.00,Redditch Borough Council,12546,Executive Director And Deputy ,Misc. Expenses,4730
http://statistics.data.gov.uk/id/local-authority/47UB,Bromsgrove District Council,21/08/2015,2229,200052892,39.00,Redditch Borough Council,12546,Executive Director And Deputy ,Int Repair/Maint.(Reg'D For Gr,3553
http://statistics.data.gov.uk/id/local-authority/47UB,Bromsgrove District Council,21/08/2015,2229,200052892,"3,458.17",Redditch Borough Council,12546,Executive Director And Deputy ,Ext Repair/Maint.(Reg'D For Gr,3552
http://statistics.data.gov.uk/id/local-authority/47UB,Bromsgrove District Council,21/08/2015,2479,200055700,708.34,Redditch Borough Council,12546,Bdc Balance Sheet,Payroll Deductions,1488
http://statistics.data.gov.uk/id/local-authority/47UB,Bromsgrove District Council,21/08/2015,3020,200064335,"21,867.23",Redditch Borough Council,12546,Executive Director And Deputy ,Shared Service Expend - Rbc,5015
http://statistics.data.gov.uk/id/local-authority/47UB,Bromsgrove District Council,07/08/2015,3022,200064300,"2,554.91",Redditch Borough Council,12546,Executive Director And Deputy ,Shared Service Expend - Rbc,5015
http://statistics.data.gov.uk/id/local-authority/47UB,Bromsgrove District Council,07/08/2015,3023,200064327,"1,928.97",Redditch Borough Council,12546,Executive Director And Deputy ,Shared Service Expend - Rbc,5015
http://statistics.data.gov.uk/id/local-authority/47UB,Bromsgrove District Council,21/08/2015,3084,800036021,"52,815.00",Redditch Borough Council,12546,Business Transformation,Shared Service Expend - Rbc,5015
http://statistics.data.gov.uk/id/local-authority/47UB,Bromsgrove District Council,21/08/2015,3084,800036021,"16,799.75",Redditch Borough Council,12546,Chief Executive,Shared Service Expend - Rbc,5015
http://statistics.data.gov.uk/id/local-authority/47UB,Bromsgrove District Council,21/08/2015,3084,800036021,"16,602.00",Redditch Borough Council,12546,Chief Executive,Shared Service Expend - Rbc,5015
http://statistics.data.gov.uk/id/local-authority/47UB,Bromsgrove District Council,21/08/2015,3084,800036021,"18,390.50",Redditch Borough Council,12546,Chief Executive,Shared Service Expend - Rbc,5015
http://statistics.data.gov.uk/id/local-authority/47UB,Bromsgrove District Council,21/08/2015,3084,800036021,"12,475.00",Redditch Borough Council,12546,Executive Director And Deputy ,Shared Service Expend - Rbc,5015
http://statistics.data.gov.uk/id/local-authority/47UB,Bromsgrove District Council,21/08/2015,3084,800036021,"12,665.00",Redditch Borough Council,12546,Executive Director And Deputy ,Shared Service Expend - Rbc,5015
http://statistics.data.gov.uk/id/local-authority/47UB,Bromsgrove District Council,21/08/2015,3084,800036021,"50,640.00",Redditch Borough Council,12546,Executive Director And Deputy ,Shared Service Expend - Rbc,5015
http://statistics.data.gov.uk/id/local-authority/47UB,Bromsgrove District Council,21/08/2015,3084,800036021,"51,885.00",Redditch Borough Council,12546,Executive Director And Deputy ,Shared Service Expend - Rbc,5015
http://statistics.data.gov.uk/id/local-authority/47UB,Bromsgrove District Council,21/08/2015,3084,800036021,"2,500.00",Redditch Borough Council,12546,Executive Director And Deputy ,Shared Service Expend - Rbc,5015
http://statistics.data.gov.uk/id/local-authority/47UB,Bromsgrove District Council,21/08/2015,3084,800036021,"33,410.00",Redditch Borough Council,12546,Executive Director And Deputy ,Shared Service Expend - Rbc,5015
http://statistics.data.gov.uk/id/local-authority/47UB,Bromsgrove District Council,21/08/2015,3084,800036021,"45,520.00",Redditch Borough Council,12546,Executive Director And Deputy ,Shared Service Expend - Rbc,5015
http://statistics.data.gov.uk/id/local-authority/47UB,Bromsgrove District Council,21/08/2015,3084,800036021,"3,000.00",Redditch Borough Council,12546,Executive Director And Deputy ,Shared Service Expend - Rbc,5015
http://statistics.data.gov.uk/id/local-authority/47UB,Bromsgrove District Council,21/08/2015,3084,800036021,"56,621.50",Redditch Borough Council,12546,Executive Director Of Finance,Shared Service Expend - Rbc,5015
http://statistics.data.gov.uk/id/local-authority/47UB,Bromsgrove District Council,21/08/2015,3084,800036021,"38,386.50",Redditch Borough Council,12546,Executive Director Of Finance,Shared Service Expend - Rbc,5015
http://statistics.data.gov.uk/id/local-authority/47UB,Bromsgrove District Council,21/08/2015,3084,800036021,"15,651.00",Redditch Borough Council,12546,Executive Director Of Finance,Shared Service Expend - Rbc,5015
http://statistics.data.gov.uk/id/local-authority/47UB,Bromsgrove District Council,21/08/2015,3084,800036021,"11,610.00",Redditch Borough Council,12546,Executive Director Of Finance,Shared Service Expend - Rbc,5015
http://statistics.data.gov.uk/id/local-authority/47UB,Bromsgrove District Council,21/08/2015,3084,800036021,"14,725.00",Redditch Borough Council,12546,Executive Director Of Finance,Shared Service Expend - Rbc,5015
http://statistics.data.gov.uk/id/local-authority/47UB,Bromsgrove District Council,21/08/2015,3084,800036021,"7,015.00",Redditch Borough Council,12546,Executive Director Of Finance,Shared Service Expend - Rbc,5015
http://statistics.data.gov.uk/id/local-authority/47UB,Bromsgrove District Council,21/08/2015,3084,800036021,"3,135.00",Redditch Borough Council,12546,Executive Director Of Finance,Shared Service Expend - Rbc,5015
http://statistics.data.gov.uk/id/local-authority/47UB,Bromsgrove District Council,21/08/2015,3084,800036021,"70,017.50",Redditch Borough Council,12546,Executive Director Of Finance,Shared Service Expend - Rbc,5015
http://statistics.data.gov.uk/id/local-authority/47UB,Bromsgrove District Council,21/08/2015,3084,800036021,"12,215.00",Redditch Borough Council,12546,Executive Director Planning,Shared Service Expend - Rbc,5015
http://statistics.data.gov.uk/id/local-authority/47UB,Bromsgrove District Council,21/08/2015,3373,200069329,"-2,557.00",Redditch Borough Council,12546,Executive Director And Deputy ,Income - Shared Service Rbc,6115
http://statistics.data.gov.uk/id/local-authority/47UB,Bromsgrove District Council,21/08/2015,3373,200069329,"16,680.80",Redditch Borough Council,12546,Executive Director And Deputy ,Shared Service Expend - Rbc,5015
http://statistics.data.gov.uk/id/local-authority/47UB,Bromsgrove District Council,21/08/2015,3381,200068942,"24,804.95",Redditch Borough Council,12546,Executive Director And Deputy ,Shared Service Expend - Rbc,5015
http://statistics.data.gov.uk/id/local-authority/47UB,Bromsgrove District Council,21/08/2015,3382,200068985,"23,424.47",Redditch Borough Council,12546,Executive Director And Deputy ,Shared Service Expend - Rbc,5015
http://statistics.data.gov.uk/id/local-authority/47UB,Bromsgrove District Council,21/08/2015,3481,200053211,"37,396.60",Redditch Borough Council,12546,Executive Director And Deputy ,Shared Service Expend - Rbc,5015
http://statistics.data.gov.uk/id/local-authority/47UB,Bromsgrove District Council,21/08/2015,3483,200053287,"81,349.56",Redditch Borough Council,12546,Executive Director And Deputy ,Shared Service Expend - Rbc,5015
http://statistics.data.gov.uk/id/local-authority/47UB,Bromsgrove District Council,21/08/2015,3488,200053041,"5,000.00",Redditch Borough Council,12546,Bdc Reg Client,Shared Service Expend - Rbc,5015
http://statistics.data.gov.uk/id/local-authority/47UB,Bromsgrove District Council,21/08/2015,3488,200053041,"17,482.94",Redditch Borough Council,12546,Executive Director Of Finance,Shared Service Expend - Rbc,5015
http://statistics.data.gov.uk/id/local-authority/47UB,Bromsgrove District Council,21/08/2015,3488,200053041,"7,523.39",Redditch Borough Council,12546,Executive Director Of Finance,Shared Service Expend - Rbc,5015
http://statistics.data.gov.uk/id/local-authority/47UB,Bromsgrove District Council,21/08/2015,3488,200053041,"127,323.03",Redditch Borough Council,12546,Executive Director Of Finance,Shared Service Expend - Rbc,5015
http://statistics.data.gov.uk/id/local-authority/47UB,Bromsgrove District Council,21/08/2015,3490,200053198,"15,504.53",Redditch Borough Council,12546,Chief Executive,Shared Service Expend - Rbc,5015
http://statistics.data.gov.uk/id/local-authority/47UB,Bromsgrove District Council,21/08/2015,3490,200053198,"15,695.58",Redditch Borough Council,12546,Chief Executive,Shared Service Expend - Rbc,5015
http://statistics.data.gov.uk/id/local-authority/47UB,Bromsgrove District Council,21/08/2015,3490,200053198,"22,398.56",Redditch Borough Council,12546,Chief Executive,Shared Service Expend - Rbc,5015
http://statistics.data.gov.uk/id/local-authority/47UB,Bromsgrove District Council,21/08/2015,2727,5800012905,"1,593.90",Cannon (Ocs Group Uk Limited),126,Technical Pollution,Contractors,5158
http://statistics.data.gov.uk/id/local-authority/47UB,Bromsgrove District Council,28/08/2015,3718,5800012528,"3,049.20",Cannon (Ocs Group Uk Limited),126,Technical Pollution,Contractors,5158
http://statistics.data.gov.uk/id/local-authority/47UB,Bromsgrove District Council,21/08/2015,3378,0800009803,"3,652.60",Malvern Hills District Council,1344,Management Costs,Agency Staff,3020
http://statistics.data.gov.uk/id/local-authority/47UB,Bromsgrove District Council,21/08/2015,3379,0800009816,529.02,Malvern Hills District Council,1344,Core Environmental Health,Telephone Calls,4452
http://statistics.data.gov.uk/id/local-authority/47UB,Bromsgrove District Council,21/08/2015,3379,0800009816,529.01,Malvern Hills District Council,1344,Core Environmental Health,Telephone Calls,4452
http://statistics.data.gov.uk/id/local-authority/47UB,Bromsgrove District Council,21/08/2015,3379,0800009816,-370.00,Malvern Hills District Council,1344,Licensing,Misc Income,6309
http://statistics.data.gov.uk/id/local-authority/47UB,Bromsgrove District Council,21/08/2015,3379,0800009816,226.30,Malvern Hills District Council,1344,Support,External Printing,4302
http://statistics.data.gov.uk/id/local-authority/47UB,Bromsgrove District Council,21/08/2015,3379,0800009816,28.51,Malvern Hills District Council,1344,Support,Books & Publications,4303
http://statistics.data.gov.uk/id/local-authority/47UB,Bromsgrove District Council,21/08/2015,3379,0800009816,48.35,Malvern Hills District Council,1344,Technical Pollution,Fuel,3750
http://statistics.data.gov.uk/id/local-authority/47UB,Bromsgrove District Council,21/08/2015,3383,0800009793,"5,217.99",Malvern Hills District Council,1344,Management Costs,Agency Staff,3020
http://statistics.data.gov.uk/id/local-authority/47UB,Bromsgrove District Council,21/08/2015,2604,42086,0.00,Pja Electrics,1556,Executive Director And Deputy ,Ext Repair/Maint.(Reg'D For Gr,3552
http://statistics.data.gov.uk/id/local-authority/47UB,Bromsgrove District Council,21/08/2015,2604,42086,450.65,Pja Electrics,1556,Executive Director And Deputy ,Ext Repair/Maint.(Reg'D For Gr,3552
http://statistics.data.gov.uk/id/local-authority/47UB,Bromsgrove District Council,21/08/2015,2381,31512546,650.65,Rentokil Hygiene,1670,Executive Director And Deputy ,Fixture & Fittings,3550
http://statistics.data.gov.uk/id/local-authority/47UB,Bromsgrove District Council,07/08/2015,3388,SUB 11515 11824,891.00,Association Of Building Engineers,1764,Executive Director Planning,Employee Subscription,3041
http://statistics.data.gov.uk/id/local-authority/47UB,Bromsgrove District Council,21/08/2015,3705,LGUTLZRG,"2,179.75",N Power Limited,1919,Executive Director And Deputy ,Electricity,3300
http://statistics.data.gov.uk/id/local-authority/47UB,Bromsgrove District Council,21/08/2015,3705,LGUTLZRG,42.19,N Power Limited,1919,Executive Director And Deputy ,Electricity,3300
http://statistics.data.gov.uk/id/local-authority/47UB,Bromsgrove District Council,21/08/2015,3705,LGUTLZRG,735.36,N Power Limited,1919,Executive Director And Deputy ,Electricity,3300
http://statistics.data.gov.uk/id/local-authority/47UB,Bromsgrove District Council,21/08/2015,3705,LGUTLZRG,16.71,N Power Limited,1919,Executive Director And Deputy ,Electricity,3300
http://statistics.data.gov.uk/id/local-authority/47UB,Bromsgrove District Council,21/08/2015,3705,LGUTLZRG,8.30,N Power Limited,1919,Executive Director And Deputy ,Electricity,3300
http://statistics.data.gov.uk/id/local-authority/47UB,Bromsgrove District Council,21/08/2015,3705,LGUTLZRG,35.60,N Power Limited,1919,Executive Director And Deputy ,Electricity,3300
http://statistics.data.gov.uk/id/local-authority/47UB,Bromsgrove District Council,21/08/2015,3705,LGUTLZRG,30.64,N Power Limited,1919,Executive Director And Deputy ,Electricity,3300
http://statistics.data.gov.uk/id/local-authority/47UB,Bromsgrove District Council,21/08/2015,3705,LGUTLZRG,815.94,N Power Limited,1919,Executive Director And Deputy ,Electricity,3300
http://statistics.data.gov.uk/id/local-authority/47UB,Bromsgrove District Council,21/08/2015,3705,LGUTLZRG,449.67,N Power Limited,1919,Executive Director And Deputy ,Electricity,3300
http://statistics.data.gov.uk/id/local-authority/47UB,Bromsgrove District Council,21/08/2015,3705,LGUTLZRG,233.98,N Power Limited,1919,Executive Director Planning,Electricity,3300
http://statistics.data.gov.uk/id/local-authority/47UB,Bromsgrove District Council,21/08/2015,3706,LGUTKT2G,"1,265.85",N Power Limited,1919,Executive Director And Deputy ,Electricity,3300
http://statistics.data.gov.uk/id/local-authority/47UB,Bromsgrove District Council,28/08/2015,3859,LGUTQCYP,170.83,N Power Limited,1919,Executive Director And Deputy ,Electricity,3300
http://statistics.data.gov.uk/id/local-authority/47UB,Bromsgrove District Council,28/08/2015,3859,LGUTQCYP,"1,159.71",N Power Limited,1919,Executive Director And Deputy ,Electricity,3300
http://statistics.data.gov.uk/id/local-authority/47UB,Bromsgrove District Council,28/08/2015,3859,LGUTQCYP,134.90,N Power Limited,1919,Executive Director And Deputy ,Electricity,3300
http://statistics.data.gov.uk/id/local-authority/47UB,Bromsgrove District Council,28/08/2015,3863,LGUTQCWV,"1,231.46",N Power Limited,1919,Executive Director And Deputy ,Electricity,3300
http://statistics.data.gov.uk/id/local-authority/47UB,Bromsgrove District Council,14/08/2015,2475,93893,"29,531.44",Wyre Forest District Council,1922,Management Costs,Contractors,5158
http://statistics.data.gov.uk/id/local-authority/47UB,Bromsgrove District Council,07/08/2015,2725,94131,"15,000.00",Wyre Forest District Council,1922,Support,Rents,3350
http://statistics.data.gov.uk/id/local-authority/47UB,Bromsgrove District Council,07/08/2015,2725,94131,"15,000.00",Wyre Forest District Council,1922,Support,It Services,5520
http://statistics.data.gov.uk/id/local-authority/47UB,Bromsgrove District Council,07/08/2015,2806,94212,"70,000.89",Wyre Forest District Council,1922,Support,Computer Equipment,4506
http://statistics.data.gov.uk/id/local-authority/47UB,Bromsgrove District Council,14/08/2015,3175,2202047703,"3,646.00",Worcestershire County Council,195,Executive Director And Deputy ,Contractors,5158
http://statistics.data.gov.uk/id/local-authority/47UB,Bromsgrove District Council,07/08/2015,3364,2206048281,"3,755.00",Worcestershire County Council,195,Executive Director Planning,Contractors,5158
http://statistics.data.gov.uk/id/local-authority/47UB,Bromsgrove District Council,21/08/2015,3517,NUMBER220408967,997.39,Worcestershire County Council,195,Chief Executive,Contributions,4212
http://statistics.data.gov.uk/id/local-authority/47UB,Bromsgrove District Council,14/08/2015,3185,67043,"2,000.00",Durolas (Contractors) Ltd,205,Executive Director And Deputy ,Routine Grounds Maintenance,3200
http://statistics.data.gov.uk/id/local-authority/47UB,Bromsgrove District Council,21/08/2015,2875,8040024640,260.38,Worcester City Council,2238,Core Environmental Health,Out Of Hours Service (Sla),4459
http://statistics.data.gov.uk/id/local-authority/47UB,Bromsgrove District Council,21/08/2015,2875,8040024640,260.38,Worcester City Council,2238,Core Environmental Health,Out Of Hours Service (Sla),4459
http://statistics.data.gov.uk/id/local-authority/47UB,Bromsgrove District Council,21/08/2015,3087,8040025254,"15,376.00",Worcester City Council,2238,Executive Director Of Finance,Shared Service Expend - Rbc,5015
http://statistics.data.gov.uk/id/local-authority/47UB,Bromsgrove District Council,07/08/2015,3339,8030008692,"1,800.00",Worcester City Council,2238,Executive Director Of Finance,Debt Management Expenses,5803
http://statistics.data.gov.uk/id/local-authority/47UB,Bromsgrove District Council,14/08/2015,3547,1482636,"3,192.84",Oracle,2324,Business Transformation,Software Maintenance,4503
http://statistics.data.gov.uk/id/local-authority/47UB,Bromsgrove District Council,14/08/2015,3547,1482636,"3,192.84",Oracle,2324,Business Transformation,Software Maintenance,4503
http://statistics.data.gov.uk/id/local-authority/47UB,Bromsgrove District Council,07/08/2015,1989,892126340,678.03,Severn Trent Water,2411,Support,Water Charges,3450
http://statistics.data.gov.uk/id/local-authority/47UB,Bromsgrove District Council,21/08/2015,3731,INV256425,"1,452.00",Tpg Disable Aids,242,Capital Schemes Community,Disabled Facilities Grant,8701
http://statistics.data.gov.uk/id/local-authority/47UB,Bromsgrove District Council,21/08/2015,3733,INV257358,"1,955.00",Tpg Disable Aids,242,Capital Schemes Community,Disabled Facilities Grant,8701
http://statistics.data.gov.uk/id/local-authority/47UB,Bromsgrove District Council,07/08/2015,3008,DE10883550,513.29,Dennis Eagle Ltd,250,Executive Director And Deputy ,Vehicle Repairs/Maint'Ce,3757
http://statistics.data.gov.uk/id/local-authority/47UB,Bromsgrove District Council,14/08/2015,3045,DE10884505,740.56,Dennis Eagle Ltd,250,Bdc Balance Sheet,Received Not Invoiced,2096
http://statistics.data.gov.uk/id/local-authority/47UB,Bromsgrove District Council,14/08/2015,3045,DE10884505,0.00,Dennis Eagle Ltd,250,Bdc Balance Sheet,Cbs - Stores Account,1210
http://statistics.data.gov.uk/id/local-authority/47UB,Bromsgrove District Council,14/08/2015,3246,DE10886443,401.34,Dennis Eagle Ltd,250,Executive Director And Deputy ,Vehicle Repairs/Maint'Ce,3757
http://statistics.data.gov.uk/id/local-authority/47UB,Bromsgrove District Council,14/08/2015,3246,DE10886443,212.03,Dennis Eagle Ltd,250,Executive Director And Deputy ,Vehicle Repairs/Maint'Ce,3757
http://statistics.data.gov.uk/id/local-authority/47UB,Bromsgrove District Council,28/08/2015,3475,DE10887928,401.34,Dennis Eagle Ltd,250,Executive Director And Deputy ,Vehicle Repairs/Maint'Ce,3757
http://statistics.data.gov.uk/id/local-authority/47UB,Bromsgrove District Council,28/08/2015,3475,DE10887928,269.11,Dennis Eagle Ltd,250,Executive Director And Deputy ,Vehicle Repairs/Maint'Ce,3757
http://statistics.data.gov.uk/id/local-authority/47UB,Bromsgrove District Council,28/08/2015,3475,DE10887928,258.64,Dennis Eagle Ltd,250,Executive Director And Deputy ,Vehicle Repairs/Maint'Ce,3757
http://statistics.data.gov.uk/id/local-authority/47UB,Bromsgrove District Council,21/08/2015,2421,11362,"3,150.00",Cooper Mobile Services Limited,2549,Executive Director And Deputy ,Contract Hire Of Vehicles,3761
http://statistics.data.gov.uk/id/local-authority/47UB,Bromsgrove District Council,21/08/2015,3461,11479,"3,300.00",Cooper Mobile Services Limited,2549,Executive Director And Deputy ,Contract Hire Of Vehicles,3761
http://statistics.data.gov.uk/id/local-authority/47UB,Bromsgrove District Council,21/08/2015,3467,11478,"3,450.00",Cooper Mobile Services Limited,2549,Executive Director And Deputy ,Contract Hire Of Vehicles,3761
http://statistics.data.gov.uk/id/local-authority/47UB,Bromsgrove District Council,21/08/2015,2742,SG5L69993,614.87,Lexis Nexis Uk,273,Executive Director Of Finance,Transfer To Reserves,4803
http://statistics.data.gov.uk/id/local-authority/47UB,Bromsgrove District Council,07/08/2015,3390,DI5L68735,863.00,Lexis Nexis Uk,273,Executive Director Of Finance,Elections Ier / Psn,2759
http://statistics.data.gov.uk/id/local-authority/47UB,Bromsgrove District Council,07/08/2015,3237,122080,300.00,Switchshop Limited,3114,Business Transformation,Software Enhancements,4502
http://statistics.data.gov.uk/id/local-authority/47UB,Bromsgrove District Council,07/08/2015,3237,122080,300.00,Switchshop Limited,3114,Business Transformation,Software Enhancements,4502
http://statistics.data.gov.uk/id/local-authority/47UB,Bromsgrove District Council,28/08/2015,3677,122290,300.00,Switchshop Limited,3114,Business Transformation,Network Security,4508
http://statistics.data.gov.uk/id/local-authority/47UB,Bromsgrove District Council,28/08/2015,3677,122290,300.00,Switchshop Limited,3114,Business Transformation,Network Security,4508
http://statistics.data.gov.uk/id/local-authority/47UB,Bromsgrove District Council,28/08/2015,3677,122290,10.00,Switchshop Limited,3114,Business Transformation,Network Security,4508
http://statistics.data.gov.uk/id/local-authority/47UB,Bromsgrove District Council,28/08/2015,3677,122290,10.00,Switchshop Limited,3114,Business Transformation,Network Security,4508
http://statistics.data.gov.uk/id/local-authority/47UB,Bromsgrove District Council,21/08/2015,3010,BDCSLA/Q2/15-16,"2,500.00",Newstarts,3311,Executive Director And Deputy ,Grants,4660
http://statistics.data.gov.uk/id/local-authority/47UB,Bromsgrove District Council,21/08/2015,3055,325042,761.04,Scarab Sweepers Limited,342,Executive Director And Deputy ,Vehicle Repairs/Maint'Ce,3757
http://statistics.data.gov.uk/id/local-authority/47UB,Bromsgrove District Council,14/08/2015,3227,108286,720.00,Nsse Ltd,34750,Business Transformation,Hardware Maintenance,4504
http://statistics.data.gov.uk/id/local-authority/47UB,Bromsgrove District Council,28/08/2015,3232,108293,"4,480.00",Nsse Ltd,34750,Business Transformation,Computer Consumables,4500
http://statistics.data.gov.uk/id/local-authority/47UB,Bromsgrove District Council,28/08/2015,3894,60602299,"1,759.00",Tameside Mbc,34771,Executive Director Of Finance,Subscriptions,4650
http://statistics.data.gov.uk/id/local-authority/47UB,Bromsgrove District Council,21/08/2015,3447,53442878,69.60,Imperial Commercials Ltd. (Bristol),34794,Bdc Balance Sheet,Received Not Invoiced,2096
http://statistics.data.gov.uk/id/local-authority/47UB,Bromsgrove District Council,21/08/2015,3447,53442878,0.00,Imperial Commercials Ltd. (Bristol),34794,Bdc Balance Sheet,Cbs - Stores Account,1210
http://statistics.data.gov.uk/id/local-authority/47UB,Bromsgrove District Council,21/08/2015,3447,53442878,68.85,Imperial Commercials Ltd. (Bristol),34794,Bdc Balance Sheet,Received Not Invoiced,2096
http://statistics.data.gov.uk/id/local-authority/47UB,Bromsgrove District Council,21/08/2015,3447,53442878,0.00,Imperial Commercials Ltd. (Bristol),34794,Bdc Balance Sheet,Cbs - Stores Account,1210
http://statistics.data.gov.uk/id/local-authority/47UB,Bromsgrove District Council,21/08/2015,3447,53442878,39.12,Imperial Commercials Ltd. (Bristol),34794,Bdc Balance Sheet,Received Not Invoiced,2096
http://statistics.data.gov.uk/id/local-authority/47UB,Bromsgrove District Council,21/08/2015,3447,53442878,0.00,Imperial Commercials Ltd. (Bristol),34794,Bdc Balance Sheet,Cbs - Stores Account,1210
http://statistics.data.gov.uk/id/local-authority/47UB,Bromsgrove District Council,21/08/2015,3447,53442878,27.18,Imperial Commercials Ltd. (Bristol),34794,Bdc Balance Sheet,Received Not Invoiced,2096
http://statistics.data.gov.uk/id/local-authority/47UB,Bromsgrove District Council,21/08/2015,3447,53442878,0.00,Imperial Commercials Ltd. (Bristol),34794,Bdc Balance Sheet,Cbs - Stores Account,1210
http://statistics.data.gov.uk/id/local-authority/47UB,Bromsgrove District Council,21/08/2015,3447,53442878,27.18,Imperial Commercials Ltd. (Bristol),34794,Bdc Balance Sheet,Received Not Invoiced,2096
http://statistics.data.gov.uk/id/local-authority/47UB,Bromsgrove District Council,21/08/2015,3447,53442878,0.00,Imperial Commercials Ltd. (Bristol),34794,Bdc Balance Sheet,Cbs - Stores Account,1210
http://statistics.data.gov.uk/id/local-authority/47UB,Bromsgrove District Council,21/08/2015,3447,53442878,26.50,Imperial Commercials Ltd. (Bristol),34794,Bdc Balance Sheet,Received Not Invoiced,2096
http://statistics.data.gov.uk/id/local-authority/47UB,Bromsgrove District Council,21/08/2015,3447,53442878,0.00,Imperial Commercials Ltd. (Bristol),34794,Bdc Balance Sheet,Cbs - Stores Account,1210
http://statistics.data.gov.uk/id/local-authority/47UB,Bromsgrove District Council,21/08/2015,3447,53442878,34.50,Imperial Commercials Ltd. (Bristol),34794,Bdc Balance Sheet,Received Not Invoiced,2096
http://statistics.data.gov.uk/id/local-authority/47UB,Bromsgrove District Council,21/08/2015,3447,53442878,0.00,Imperial Commercials Ltd. (Bristol),34794,Bdc Balance Sheet,Cbs - Stores Account,1210
http://statistics.data.gov.uk/id/local-authority/47UB,Bromsgrove District Council,21/08/2015,3447,53442878,87.10,Imperial Commercials Ltd. (Bristol),34794,Bdc Balance Sheet,Received Not Invoiced,2096
http://statistics.data.gov.uk/id/local-authority/47UB,Bromsgrove District Council,21/08/2015,3447,53442878,0.00,Imperial Commercials Ltd. (Bristol),34794,Bdc Balance Sheet,Cbs - Stores Account,1210
http://statistics.data.gov.uk/id/local-authority/47UB,Bromsgrove District Council,21/08/2015,3447,53442878,87.10,Imperial Commercials Ltd. (Bristol),34794,Bdc Balance Sheet,Received Not Invoiced,2096
http://statistics.data.gov.uk/id/local-authority/47UB,Bromsgrove District Council,21/08/2015,3447,53442878,0.00,Imperial Commercials Ltd. (Bristol),34794,Bdc Balance Sheet,Cbs - Stores Account,1210
http://statistics.data.gov.uk/id/local-authority/47UB,Bromsgrove District Council,21/08/2015,3447,53442878,41.36,Imperial Commercials Ltd. (Bristol),34794,Bdc Balance Sheet,Received Not Invoiced,2096
http://statistics.data.gov.uk/id/local-authority/47UB,Bromsgrove District Council,21/08/2015,3447,53442878,0.00,Imperial Commercials Ltd. (Bristol),34794,Bdc Balance Sheet,Cbs - Stores Account,1210
http://statistics.data.gov.uk/id/local-authority/47UB,Bromsgrove District Council,21/08/2015,3447,53442878,46.20,Imperial Commercials Ltd. (Bristol),34794,Bdc Balance Sheet,Received Not Invoiced,2096
http://statistics.data.gov.uk/id/local-authority/47UB,Bromsgrove District Council,21/08/2015,3447,53442878,0.00,Imperial Commercials Ltd. (Bristol),34794,Bdc Balance Sheet,Cbs - Stores Account,1210
http://statistics.data.gov.uk/id/local-authority/47UB,Bromsgrove District Council,21/08/2015,3447,53442878,17.00,Imperial Commercials Ltd. (Bristol),34794,Bdc Balance Sheet,Received Not Invoiced,2096
http://statistics.data.gov.uk/id/local-authority/47UB,Bromsgrove District Council,21/08/2015,3447,53442878,0.00,Imperial Commercials Ltd. (Bristol),34794,Bdc Balance Sheet,Cbs - Stores Account,1210
http://statistics.data.gov.uk/id/local-authority/47UB,Bromsgrove District Council,07/08/2015,1344,SL0846,"14,000.00",St Basils,34828,Executive Director And Deputy ,Grants,4660
http://statistics.data.gov.uk/id/local-authority/47UB,Bromsgrove District Council,14/08/2015,3502,28032,47.65,Midland Signs (Leicester) Ltd,34877,Executive Director And Deputy ,Fixture & Fittings,3550
http://statistics.data.gov.uk/id/local-authority/47UB,Bromsgrove District Council,14/08/2015,3502,28032,48.80,Midland Signs (Leicester) Ltd,34877,Executive Director And Deputy ,Fixture & Fittings,3550
http://statistics.data.gov.uk/id/local-authority/47UB,Bromsgrove District Council,14/08/2015,3502,28032,104.50,Midland Signs (Leicester) Ltd,34877,Executive Director And Deputy ,Fixture & Fittings,3550
http://statistics.data.gov.uk/id/local-authority/47UB,Bromsgrove District Council,14/08/2015,3502,28032,102.85,Midland Signs (Leicester) Ltd,34877,Executive Director And Deputy ,Fixture & Fittings,3550
http://statistics.data.gov.uk/id/local-authority/47UB,Bromsgrove District Council,14/08/2015,3502,28032,102.20,Midland Signs (Leicester) Ltd,34877,Executive Director And Deputy ,Fixture & Fittings,3550
http://statistics.data.gov.uk/id/local-authority/47UB,Bromsgrove District Council,14/08/2015,3502,28032,102.20,Midland Signs (Leicester) Ltd,34877,Executive Director And Deputy ,Fixture & Fittings,3550
http://statistics.data.gov.uk/id/local-authority/47UB,Bromsgrove District Council,14/08/2015,3502,28032,47.65,Midland Signs (Leicester) Ltd,34877,Executive Director And Deputy ,Fixture & Fittings,3550
http://statistics.data.gov.uk/id/local-authority/47UB,Bromsgrove District Council,07/08/2015,3343,ERS1500301,"11,262.65",Electoral Reform Services,34885,Executive Director Of Finance,Elections Ier / Psn,2759
http://statistics.data.gov.uk/id/local-authority/47UB,Bromsgrove District Council,07/08/2015,3343,ERS1500301,"11,262.66",Electoral Reform Services,34885,Executive Director Of Finance,Elections Ier / Psn,2759
http://statistics.data.gov.uk/id/local-authority/47UB,Bromsgrove District Council,07/08/2015,3344,ERS1500731,411.57,Electoral Reform Services,34885,Executive Director Of Finance,Elections Ier / Psn,2759
http://statistics.data.gov.uk/id/local-authority/47UB,Bromsgrove District Council,07/08/2015,3344,ERS1500731,411.57,Electoral Reform Services,34885,Executive Director Of Finance,Elections Ier / Psn,2759
http://statistics.data.gov.uk/id/local-authority/47UB,Bromsgrove District Council,07/08/2015,3345,ERS1500832,373.30,Electoral Reform Services,34885,Executive Director Of Finance,Elections Ier / Psn,2759
http://statistics.data.gov.uk/id/local-authority/47UB,Bromsgrove District Council,07/08/2015,3345,ERS1500832,373.30,Electoral Reform Services,34885,Executive Director Of Finance,Elections Ier / Psn,2759
http://statistics.data.gov.uk/id/local-authority/47UB,Bromsgrove District Council,07/08/2015,3347,ERS1500166,"4,032.95",Electoral Reform Services,34885,Executive Director Of Finance,Elections Ier / Psn,2759
http://statistics.data.gov.uk/id/local-authority/47UB,Bromsgrove District Council,07/08/2015,3348,ERS1501316,416.30,Electoral Reform Services,34885,Executive Director Of Finance,Elections Ier / Psn,2759
http://statistics.data.gov.uk/id/local-authority/47UB,Bromsgrove District Council,07/08/2015,3348,ERS1501316,416.30,Electoral Reform Services,34885,Executive Director Of Finance,Elections Ier / Psn,2759
http://statistics.data.gov.uk/id/local-authority/47UB,Bromsgrove District Council,14/08/2015,1959,57473,"6,002.85",Print.Uk.Com,34898,Executive Director Of Finance,External Printing,4302
http://statistics.data.gov.uk/id/local-authority/47UB,Bromsgrove District Council,07/08/2015,2994,249135,214.50,Helping Hand Co Ledbury Ltd,34955,Bdc Balance Sheet,Received Not Invoiced,2096
http://statistics.data.gov.uk/id/local-authority/47UB,Bromsgrove District Council,07/08/2015,2994,249135,0.00,Helping Hand Co Ledbury Ltd,34955,Bdc Balance Sheet,Cbs - Stores Account,1210
http://statistics.data.gov.uk/id/local-authority/47UB,Bromsgrove District Council,07/08/2015,2994,249135,239.50,Helping Hand Co Ledbury Ltd,34955,Bdc Balance Sheet,Received Not Invoiced,2096
http://statistics.data.gov.uk/id/local-authority/47UB,Bromsgrove District Council,07/08/2015,2994,249135,0.00,Helping Hand Co Ledbury Ltd,34955,Bdc Balance Sheet,Cbs - Stores Account,1210
http://statistics.data.gov.uk/id/local-authority/47UB,Bromsgrove District Council,07/08/2015,2994,249135,139.14,Helping Hand Co Ledbury Ltd,34955,Bdc Balance Sheet,Received Not Invoiced,2096
http://statistics.data.gov.uk/id/local-authority/47UB,Bromsgrove District Council,07/08/2015,2994,249135,0.00,Helping Hand Co Ledbury Ltd,34955,Bdc Balance Sheet,Cbs - Stores Account,1210
http://statistics.data.gov.uk/id/local-authority/47UB,Bromsgrove District Council,21/08/2015,1849,184966,"1,241.65",Osborne Richardson,34969,Core Environmental Health,Agency Staff,3020
http://statistics.data.gov.uk/id/local-authority/47UB,Bromsgrove District Council,21/08/2015,2157,185472,"1,228.60",Osborne Richardson,34969,Core Environmental Health,Agency Staff,3020
http://statistics.data.gov.uk/id/local-authority/47UB,Bromsgrove District Council,14/08/2015,2709,186071,553.30,Osborne Richardson,34969,Core Environmental Health,Agency Staff,3020
http://statistics.data.gov.uk/id/local-authority/47UB,Bromsgrove District Council,14/08/2015,2710,186236,520.00,Osborne Richardson,34969,Core Environmental Health,Agency Staff,3020
http://statistics.data.gov.uk/id/local-authority/47UB,Bromsgrove District Council,14/08/2015,2753,186427,691.85,Osborne Richardson,34969,Core Environmental Health,Agency Staff,3020
http://statistics.data.gov.uk/id/local-authority/47UB,Bromsgrove District Council,21/08/2015,2866,186615,"1,071.08",Osborne Richardson,34969,Core Environmental Health,Agency Staff,3020
http://statistics.data.gov.uk/id/local-authority/47UB,Bromsgrove District Council,21/08/2015,3017,186822,"1,264.65",Osborne Richardson,34969,Core Environmental Health,Agency Staff,3020
http://statistics.data.gov.uk/id/local-authority/47UB,Bromsgrove District Council,21/08/2015,3088,187004,"1,241.70",Osborne Richardson,34969,Core Environmental Health,Agency Staff,3020
http://statistics.data.gov.uk/id/local-authority/47UB,Bromsgrove District Council,21/08/2015,3376,187175,"1,240.35",Osborne Richardson,34969,Core Environmental Health,Agency Staff,3020
http://statistics.data.gov.uk/id/local-authority/47UB,Bromsgrove District Council,28/08/2015,3552,187365,"1,261.10",Osborne Richardson,34969,Core Environmental Health,Agency Staff,3020
http://statistics.data.gov.uk/id/local-authority/47UB,Bromsgrove District Council,21/08/2015,3336,EVE12961,940.00,Institute Of Licensing (Events) Ltd.,34973,Licensing,Training,3043
http://statistics.data.gov.uk/id/local-authority/47UB,Bromsgrove District Council,14/08/2015,2474,RSIN0142818,"1,750.00",Rigby Taylor Ltd,34982,Bdc Balance Sheet,Received Not Invoiced,2096
http://statistics.data.gov.uk/id/local-authority/47UB,Bromsgrove District Council,14/08/2015,2474,RSIN0142818,0.00,Rigby Taylor Ltd,34982,Bdc Balance Sheet,Cbs - Stores Account,1210
http://statistics.data.gov.uk/id/local-authority/47UB,Bromsgrove District Council,14/08/2015,2474,RSIN0142818,308.00,Rigby Taylor Ltd,34982,Bdc Balance Sheet,Received Not Invoiced,2096
http://statistics.data.gov.uk/id/local-authority/47UB,Bromsgrove District Council,14/08/2015,2474,RSIN0142818,0.00,Rigby Taylor Ltd,34982,Bdc Balance Sheet,Cbs - Stores Account,1210
http://statistics.data.gov.uk/id/local-authority/47UB,Bromsgrove District Council,07/08/2015,3042,5260401,"1,388.07",Chubb Electronic Security Systems Ltd,35003,Executive Director And Deputy ,Fixture & Fittings,3550
http://statistics.data.gov.uk/id/local-authority/47UB,Bromsgrove District Council,21/08/2015,3454,CLE0100,644.00,Am & Pm Cleaning Solutions,35039,Executive Director And Deputy ,Consumable Cleaning Materials,3605
http://statistics.data.gov.uk/id/local-authority/47UB,Bromsgrove District Council,14/08/2015,2791,201500001234,40.53,Phoenix Service Stations Ltd,35043,Executive Director And Deputy ,Oil,3752
http://statistics.data.gov.uk/id/local-authority/47UB,Bromsgrove District Council,14/08/2015,2791,201500001234,151.50,Phoenix Service Stations Ltd,35043,Executive Director And Deputy ,Oil,3752
http://statistics.data.gov.uk/id/local-authority/47UB,Bromsgrove District Council,14/08/2015,2791,201500001234,384.13,Phoenix Service Stations Ltd,35043,Executive Director And Deputy ,Oil,3752
http://statistics.data.gov.uk/id/local-authority/47UB,Bromsgrove District Council,14/08/2015,2791,201500001234,384.13,Phoenix Service Stations Ltd,35043,Executive Director And Deputy ,Oil,3752
http://statistics.data.gov.uk/id/local-authority/47UB,Bromsgrove District Council,14/08/2015,2791,201500001234,384.13,Phoenix Service Stations Ltd,35043,Executive Director And Deputy ,Oil,3752
http://statistics.data.gov.uk/id/local-authority/47UB,Bromsgrove District Council,14/08/2015,2791,201500001234,4.88,Phoenix Service Stations Ltd,35043,Executive Director And Deputy ,Oil,3752
http://statistics.data.gov.uk/id/local-authority/47UB,Bromsgrove District Council,21/08/2015,3452,0005,996.60,Jarvis & Parsons Veterinary Services Ltd,35050,Technical Pollution,Contractors,5158
http://statistics.data.gov.uk/id/local-authority/47UB,Bromsgrove District Council,21/08/2015,3697,15692,"3,590.00",Housing Partners Ltd T/A Home Swapper,35069,Executive Director And Deputy ,Contractors,3701
http://statistics.data.gov.uk/id/local-authority/47UB,Bromsgrove District Council,21/08/2015,2902,1165153-12,655.20,Volvo Group Uk Ltd,35089,Bdc Balance Sheet,Received Not Invoiced,2096
http://statistics.data.gov.uk/id/local-authority/47UB,Bromsgrove District Council,21/08/2015,2902,1165153-12,0.00,Volvo Group Uk Ltd,35089,Bdc Balance Sheet,Cbs - Stores Account,1210
http://statistics.data.gov.uk/id/local-authority/47UB,Bromsgrove District Council,28/08/2015,2917,1165152-12,655.20,Volvo Group Uk Ltd,35089,Bdc Balance Sheet,Received Not Invoiced,2096
http://statistics.data.gov.uk/id/local-authority/47UB,Bromsgrove District Council,28/08/2015,2917,1165152-12,0.00,Volvo Group Uk Ltd,35089,Bdc Balance Sheet,Cbs - Stores Account,1210
http://statistics.data.gov.uk/id/local-authority/47UB,Bromsgrove District Council,28/08/2015,2917,1165152-12,760.00,Volvo Group Uk Ltd,35089,Bdc Balance Sheet,Received Not Invoiced,2096
http://statistics.data.gov.uk/id/local-authority/47UB,Bromsgrove District Council,28/08/2015,2917,1165152-12,0.00,Volvo Group Uk Ltd,35089,Bdc Balance Sheet,Cbs - Stores Account,1210
http://statistics.data.gov.uk/id/local-authority/47UB,Bromsgrove District Council,14/08/2015,2996,10115866,"4,637.00",Warwicks County Council Trading Standard,35115,Trading Standards / Animal Hea,Subscriptions,4650
http://statistics.data.gov.uk/id/local-authority/47UB,Bromsgrove District Council,07/08/2015,3015,22626,"1,664.65",Kenyon Block Consultants,35198,Trading Standards / Animal Hea,Agency Staff,3020
http://statistics.data.gov.uk/id/local-authority/47UB,Bromsgrove District Council,14/08/2015,3180,22700,"1,369.00",Kenyon Block Consultants,35198,Trading Standards / Animal Hea,Agency Staff,3020
http://statistics.data.gov.uk/id/local-authority/47UB,Bromsgrove District Council,21/08/2015,3375,22804,"1,369.00",Kenyon Block Consultants,35198,Trading Standards / Animal Hea,Agency Staff,3020
http://statistics.data.gov.uk/id/local-authority/47UB,Bromsgrove District Council,28/08/2015,3555,22853,582.75,Kenyon Block Consultants,35198,Trading Standards / Animal Hea,Agency Staff,3020
http://statistics.data.gov.uk/id/local-authority/47UB,Bromsgrove District Council,28/08/2015,3645,22920,"1,369.00",Kenyon Block Consultants,35198,Trading Standards / Animal Hea,Agency Staff,3020
http://statistics.data.gov.uk/id/local-authority/47UB,Bromsgrove District Council,21/08/2015,3690,20540,"1,365.55",Kenyon Block Consultants,35198,Trading Standards / Animal Hea,Agency Staff,3020
http://statistics.data.gov.uk/id/local-authority/47UB,Bromsgrove District Council,21/08/2015,3700,22261,"1,369.00",Kenyon Block Consultants,35198,Trading Standards / Animal Hea,Agency Staff,3020
http://statistics.data.gov.uk/id/local-authority/47UB,Bromsgrove District Council,21/08/2015,3701,21705,"1,295.00",Kenyon Block Consultants,35198,Trading Standards / Animal Hea,Agency Staff,3020
http://statistics.data.gov.uk/id/local-authority/47UB,Bromsgrove District Council,21/08/2015,3554,NUMBER204,662.00,Pet Central Hotel (Kennels) Ltd,35205,Technical Pollution,Contractors,5158
http://statistics.data.gov.uk/id/local-authority/47UB,Bromsgrove District Council,28/08/2015,3567,1067,"4,651.26",Valeur Consulting Ltd,35209,Business Transformation,Training,3043
http://statistics.data.gov.uk/id/local-authority/47UB,Bromsgrove District Council,21/08/2015,2531,TCH41100,209.00,Trada Technology Ltd,35223,Executive Director Planning,Training,3043
http://statistics.data.gov.uk/id/local-authority/47UB,Bromsgrove District Council,21/08/2015,2531,TCH41100,254.00,Trada Technology Ltd,35223,Executive Director Planning,Training,3043
http://statistics.data.gov.uk/id/local-authority/47UB,Bromsgrove District Council,28/08/2015,3829,5299,"12,467.00",Abritas Ltd,35237,Executive Director And Deputy ,Contractors,3701
http://statistics.data.gov.uk/id/local-authority/47UB,Bromsgrove District Council,28/08/2015,2874,50028575,"1,111.00",Haymarket Publishing Services Ltd,35238,Executive Director Planning,Employee Advertising,3037
http://statistics.data.gov.uk/id/local-authority/47UB,Bromsgrove District Council,07/08/2015,2694,1489,"18,685.20",Phil Day Sports Ltd,35308,Capital Schemes Culture & Leis,Other Contract Payments,8155
http://statistics.data.gov.uk/id/local-authority/47UB,Bromsgrove District Council,07/08/2015,3049,4534,"12,000.00",Prestige Systems Ltd.,35362,Capital Schemes Planning And R,Contract Payments,8131
http://statistics.data.gov.uk/id/local-authority/47UB,Bromsgrove District Council,28/08/2015,3349,4547,350.00,Prestige Systems Ltd.,35362,Business Transformation,Network Maintenance,4505
http://statistics.data.gov.uk/id/local-authority/47UB,Bromsgrove District Council,28/08/2015,3349,4547,350.00,Prestige Systems Ltd.,35362,Business Transformation,Network Maintenance,4505
http://statistics.data.gov.uk/id/local-authority/47UB,Bromsgrove District Council,21/08/2015,3695,4506-B,"1,440.00",Prestige Systems Ltd.,35362,Business Transformation,Computer Equipment,4506
http://statistics.data.gov.uk/id/local-authority/47UB,Bromsgrove District Council,21/08/2015,3695,4506-B,"1,440.00",Prestige Systems Ltd.,35362,Business Transformation,Computer Equipment,4506
http://statistics.data.gov.uk/id/local-authority/47UB,Bromsgrove District Council,14/08/2015,3341,WRS/0095,"6,585.87",Dave Shaw Dog Training,35363,Technical Pollution,Contractors,5158
http://statistics.data.gov.uk/id/local-authority/47UB,Bromsgrove District Council,28/08/2015,2751,5013250,603.07,Daisy Communications,35521,Business Transformation,Telephone Calls,4452
http://statistics.data.gov.uk/id/local-authority/47UB,Bromsgrove District Council,28/08/2015,3541,5071716,604.24,Daisy Communications,35521,Business Transformation,Telephone Calls,4452
http://statistics.data.gov.uk/id/local-authority/47UB,Bromsgrove District Council,21/08/2015,3459,44-JULY2015,646.00,Forest Dog Rescue,35522,Technical Pollution,Contractors,5158
http://statistics.data.gov.uk/id/local-authority/47UB,Bromsgrove District Council,21/08/2015,968,3RDMARCH2015,"1,540.00",Worcester Cab & Whabac,35524,Executive Director Of Finance,Third Party Purchases,4010
http://statistics.data.gov.uk/id/local-authority/47UB,Bromsgrove District Council,07/08/2015,3340,12027,614.85,Price Planning Associates,35533,Executive Director Planning,Agency Staff,3020
http://statistics.data.gov.uk/id/local-authority/47UB,Bromsgrove District Council,28/08/2015,3200,10127316,478.34,Three Counties Equine Hospital Llp,35552,Licensing,Contractors,5158
http://statistics.data.gov.uk/id/local-authority/47UB,Bromsgrove District Council,28/08/2015,2389,8206,"7,044.20",M D Carpentry & Building Contractors Ltd,35592,Capital Schemes Culture & Leis,Other Contract Payments,8155
http://statistics.data.gov.uk/id/local-authority/47UB,Bromsgrove District Council,07/08/2015,3080,8285,440.00,M D Carpentry & Building Contractors Ltd,35592,Executive Director And Deputy ,Contractors,5158
http://statistics.data.gov.uk/id/local-authority/47UB,Bromsgrove District Council,21/08/2015,3642,31/07/2015,"1,500.00",A-Z Skips Ltd,35634,Executive Director And Deputy ,Publicity & Promotion,4700
http://statistics.data.gov.uk/id/local-authority/47UB,Bromsgrove District Council,14/08/2015,2270,28832,513.51,Wasteparts Uk Ltd,35680,Bdc Balance Sheet,Received Not Invoiced,2096
http://statistics.data.gov.uk/id/local-authority/47UB,Bromsgrove District Council,14/08/2015,2270,28832,0.00,Wasteparts Uk Ltd,35680,Bdc Balance Sheet,Cbs - Stores Account,1210
http://statistics.data.gov.uk/id/local-authority/47UB,Bromsgrove District Council,14/08/2015,2270,28832,10.00,Wasteparts Uk Ltd,35680,Bdc Balance Sheet,Stock Variance,1203
http://statistics.data.gov.uk/id/local-authority/47UB,Bromsgrove District Council,14/08/2015,2270,28832,445.09,Wasteparts Uk Ltd,35680,Bdc Balance Sheet,Received Not Invoiced,2096
http://statistics.data.gov.uk/id/local-authority/47UB,Bromsgrove District Council,14/08/2015,2270,28832,0.00,Wasteparts Uk Ltd,35680,Bdc Balance Sheet,Cbs - Stores Account,1210
http://statistics.data.gov.uk/id/local-authority/47UB,Bromsgrove District Council,14/08/2015,2410,29228,603.80,Wasteparts Uk Ltd,35680,Bdc Balance Sheet,Received Not Invoiced,2096
http://statistics.data.gov.uk/id/local-authority/47UB,Bromsgrove District Council,14/08/2015,2410,29228,0.00,Wasteparts Uk Ltd,35680,Bdc Balance Sheet,Cbs - Stores Account,1210
http://statistics.data.gov.uk/id/local-authority/47UB,Bromsgrove District Council,14/08/2015,2411,29231,521.00,Wasteparts Uk Ltd,35680,Bdc Balance Sheet,Received Not Invoiced,2096
http://statistics.data.gov.uk/id/local-authority/47UB,Bromsgrove District Council,14/08/2015,2411,29231,0.00,Wasteparts Uk Ltd,35680,Bdc Balance Sheet,Cbs - Stores Account,1210
http://statistics.data.gov.uk/id/local-authority/47UB,Bromsgrove District Council,14/08/2015,2411,29231,"1,027.02",Wasteparts Uk Ltd,35680,Bdc Balance Sheet,Received Not Invoiced,2096
http://statistics.data.gov.uk/id/local-authority/47UB,Bromsgrove District Council,14/08/2015,2411,29231,0.00,Wasteparts Uk Ltd,35680,Bdc Balance Sheet,Cbs - Stores Account,1210
http://statistics.data.gov.uk/id/local-authority/47UB,Bromsgrove District Council,14/08/2015,2411,29231,890.18,Wasteparts Uk Ltd,35680,Bdc Balance Sheet,Received Not Invoiced,2096
http://statistics.data.gov.uk/id/local-authority/47UB,Bromsgrove District Council,14/08/2015,2411,29231,0.00,Wasteparts Uk Ltd,35680,Bdc Balance Sheet,Cbs - Stores Account,1210
http://statistics.data.gov.uk/id/local-authority/47UB,Bromsgrove District Council,14/08/2015,2411,29231,978.41,Wasteparts Uk Ltd,35680,Bdc Balance Sheet,Received Not Invoiced,2096
http://statistics.data.gov.uk/id/local-authority/47UB,Bromsgrove District Council,14/08/2015,2411,29231,0.00,Wasteparts Uk Ltd,35680,Bdc Balance Sheet,Cbs - Stores Account,1210
http://statistics.data.gov.uk/id/local-authority/47UB,Bromsgrove District Council,14/08/2015,2481,29522,521.00,Wasteparts Uk Ltd,35680,Bdc Balance Sheet,Received Not Invoiced,2096
http://statistics.data.gov.uk/id/local-authority/47UB,Bromsgrove District Council,14/08/2015,2481,29522,0.00,Wasteparts Uk Ltd,35680,Bdc Balance Sheet,Cbs - Stores Account,1210
http://statistics.data.gov.uk/id/local-authority/47UB,Bromsgrove District Council,14/08/2015,2481,29522,978.41,Wasteparts Uk Ltd,35680,Bdc Balance Sheet,Received Not Invoiced,2096
http://statistics.data.gov.uk/id/local-authority/47UB,Bromsgrove District Council,14/08/2015,2481,29522,0.00,Wasteparts Uk Ltd,35680,Bdc Balance Sheet,Cbs - Stores Account,1210
http://statistics.data.gov.uk/id/local-authority/47UB,Bromsgrove District Council,07/08/2015,1970,UK78711,552.00,Parkeon Ltd,35768,Executive Director And Deputy ,Materials,4170
http://statistics.data.gov.uk/id/local-authority/47UB,Bromsgrove District Council,07/08/2015,1970,UK78711,86.00,Parkeon Ltd,35768,Executive Director And Deputy ,Materials,4170
http://statistics.data.gov.uk/id/local-authority/47UB,Bromsgrove District Council,07/08/2015,1970,UK78711,120.00,Parkeon Ltd,35768,Executive Director And Deputy ,Postage Other,4402
http://statistics.data.gov.uk/id/local-authority/47UB,Bromsgrove District Council,07/08/2015,3048,4340,546.00,Norman Long Printers Ltd,35769,Support,External Printing,4302
http://statistics.data.gov.uk/id/local-authority/47UB,Bromsgrove District Council,21/08/2015,3234,20105271,673.00,Campden Technology Ltd,35783,Core Environmental Health,Subscriptions,4650
http://statistics.data.gov.uk/id/local-authority/47UB,Bromsgrove District Council,07/08/2015,3367,HA 2/2015-2016,"10,174.00",Bromsgrove & District C.A.B,35836,Executive Director And Deputy ,Contractors,5158
http://statistics.data.gov.uk/id/local-authority/47UB,Bromsgrove District Council,07/08/2015,3368,FC - 2/2015-201,"4,400.00",Bromsgrove & District C.A.B,35836,Executive Director And Deputy ,Grants,4660
http://statistics.data.gov.uk/id/local-authority/47UB,Bromsgrove District Council,28/08/2015,3548,SIN083353,"1,203.00",Imperial Polythene Products Ltd,35838,Bdc Balance Sheet,Received Not Invoiced,2096
http://statistics.data.gov.uk/id/local-authority/47UB,Bromsgrove District Council,28/08/2015,3548,SIN083353,0.00,Imperial Polythene Products Ltd,35838,Bdc Balance Sheet,Cbs - Stores Account,1210
http://statistics.data.gov.uk/id/local-authority/47UB,Bromsgrove District Council,28/08/2015,3548,SIN083353,192.48,Imperial Polythene Products Ltd,35838,Bdc Balance Sheet,Received Not Invoiced,2096
http://statistics.data.gov.uk/id/local-authority/47UB,Bromsgrove District Council,28/08/2015,3548,SIN083353,0.00,Imperial Polythene Products Ltd,35838,Bdc Balance Sheet,Cbs - Stores Account,1210
http://statistics.data.gov.uk/id/local-authority/47UB,Bromsgrove District Council,28/08/2015,3548,SIN083353,-0.46,Imperial Polythene Products Ltd,35838,Bdc Balance Sheet,Stock Variance,1203
http://statistics.data.gov.uk/id/local-authority/47UB,Bromsgrove District Council,28/08/2015,3740,1510,770.40,Worcester Blinds,36022,Capital Schemes Community,Disabled Facilities Grant,8701
http://statistics.data.gov.uk/id/local-authority/47UB,Bromsgrove District Council,07/08/2015,3236,32054/06151082,"39,000.00",Mace Group,36065,Capital Schemes Culture & Leis,Other Contract Payments,8155
http://statistics.data.gov.uk/id/local-authority/47UB,Bromsgrove District Council,14/08/2015,3572,01202214952,41.00,E E Limited,3656,Business Transformation,Mobile Phone,4455
http://statistics.data.gov.uk/id/local-authority/47UB,Bromsgrove District Council,14/08/2015,3572,01202214952,10.50,E E Limited,3656,Business Transformation,Mobile Phone,4455
http://statistics.data.gov.uk/id/local-authority/47UB,Bromsgrove District Council,14/08/2015,3572,01202214952,26.00,E E Limited,3656,Business Transformation,Mobile Phone,4455
http://statistics.data.gov.uk/id/local-authority/47UB,Bromsgrove District Council,14/08/2015,3572,01202214952,16.00,E E Limited,3656,Business Transformation,Mobile Phone,4455
http://statistics.data.gov.uk/id/local-authority/47UB,Bromsgrove District Council,14/08/2015,3572,01202214952,35.20,E E Limited,3656,Chief Executive,Mobile Phone,4455
http://statistics.data.gov.uk/id/local-authority/47UB,Bromsgrove District Council,14/08/2015,3572,01202214952,164.60,E E Limited,3656,Chief Executive,Mobile Phone,4455
http://statistics.data.gov.uk/id/local-authority/47UB,Bromsgrove District Council,14/08/2015,3572,01202214952,48.00,E E Limited,3656,Chief Executive,Mobile Phone,4455
http://statistics.data.gov.uk/id/local-authority/47UB,Bromsgrove District Council,14/08/2015,3572,01202214952,328.49,E E Limited,3656,Core Environmental Health,Mobile Phone,4455
http://statistics.data.gov.uk/id/local-authority/47UB,Bromsgrove District Council,14/08/2015,3572,01202214952,16.00,E E Limited,3656,Env Pro - Geographic East,Mobile Phone,4455
http://statistics.data.gov.uk/id/local-authority/47UB,Bromsgrove District Council,14/08/2015,3572,01202214952,18.00,E E Limited,3656,Executive Director And Deputy ,Mobile Phone,4455
http://statistics.data.gov.uk/id/local-authority/47UB,Bromsgrove District Council,14/08/2015,3572,01202214952,3.00,E E Limited,3656,Executive Director And Deputy ,Mobile Phone,4455
http://statistics.data.gov.uk/id/local-authority/47UB,Bromsgrove District Council,14/08/2015,3572,01202214952,3.25,E E Limited,3656,Executive Director And Deputy ,Mobile Phone,4455
http://statistics.data.gov.uk/id/local-authority/47UB,Bromsgrove District Council,14/08/2015,3572,01202214952,3.00,E E Limited,3656,Executive Director And Deputy ,Mobile Phone,4455
http://statistics.data.gov.uk/id/local-authority/47UB,Bromsgrove District Council,14/08/2015,3572,01202214952,9.00,E E Limited,3656,Executive Director And Deputy ,Mobile Phone,4455
http://statistics.data.gov.uk/id/local-authority/47UB,Bromsgrove District Council,14/08/2015,3572,01202214952,3.00,E E Limited,3656,Executive Director And Deputy ,Mobile Phone,4455
http://statistics.data.gov.uk/id/local-authority/47UB,Bromsgrove District Council,14/08/2015,3572,01202214952,9.00,E E Limited,3656,Executive Director And Deputy ,Mobile Phone,4455
http://statistics.data.gov.uk/id/local-authority/47UB,Bromsgrove District Council,14/08/2015,3572,01202214952,6.00,E E Limited,3656,Executive Director And Deputy ,Mobile Phone,4455
http://statistics.data.gov.uk/id/local-authority/47UB,Bromsgrove District Council,14/08/2015,3572,01202214952,6.01,E E Limited,3656,Executive Director And Deputy ,Mobile Phone,4455
http://statistics.data.gov.uk/id/local-authority/47UB,Bromsgrove District Council,14/08/2015,3572,01202214952,44.00,E E Limited,3656,Executive Director And Deputy ,Mobile Phone,4455
http://statistics.data.gov.uk/id/local-authority/47UB,Bromsgrove District Council,14/08/2015,3572,01202214952,69.00,E E Limited,3656,Executive Director And Deputy ,Mobile Phone,4455
http://statistics.data.gov.uk/id/local-authority/47UB,Bromsgrove District Council,14/08/2015,3572,01202214952,33.16,E E Limited,3656,Executive Director And Deputy ,Mobile Phone,4455
http://statistics.data.gov.uk/id/local-authority/47UB,Bromsgrove District Council,14/08/2015,3572,01202214952,6.00,E E Limited,3656,Executive Director And Deputy ,Mobile Phone,4455
http://statistics.data.gov.uk/id/local-authority/47UB,Bromsgrove District Council,14/08/2015,3572,01202214952,72.00,E E Limited,3656,Executive Director And Deputy ,Mobile Phone,4455
http://statistics.data.gov.uk/id/local-authority/47UB,Bromsgrove District Council,14/08/2015,3572,01202214952,3.00,E E Limited,3656,Executive Director And Deputy ,Mobile Phone,4455
http://statistics.data.gov.uk/id/local-authority/47UB,Bromsgrove District Council,14/08/2015,3572,01202214952,12.00,E E Limited,3656,Executive Director And Deputy ,Mobile Phone,4455
http://statistics.data.gov.uk/id/local-authority/47UB,Bromsgrove District Council,14/08/2015,3572,01202214952,81.33,E E Limited,3656,Executive Director And Deputy ,Mobile Phone,4455
http://statistics.data.gov.uk/id/local-authority/47UB,Bromsgrove District Council,14/08/2015,3572,01202214952,6.00,E E Limited,3656,Executive Director And Deputy ,Mobile Phone,4455
http://statistics.data.gov.uk/id/local-authority/47UB,Bromsgrove District Council,14/08/2015,3572,01202214952,22.50,E E Limited,3656,Executive Director And Deputy ,Mobile Phone,4455
http://statistics.data.gov.uk/id/local-authority/47UB,Bromsgrove District Council,14/08/2015,3572,01202214952,3.00,E E Limited,3656,Executive Director Of Finance,Mobile Phone,4455
http://statistics.data.gov.uk/id/local-authority/47UB,Bromsgrove District Council,14/08/2015,3572,01202214952,51.66,E E Limited,3656,Executive Director Of Finance,Mobile Phone,4455
http://statistics.data.gov.uk/id/local-authority/47UB,Bromsgrove District Council,14/08/2015,3572,01202214952,3.00,E E Limited,3656,Executive Director Of Finance,Mobile Phone,4455
http://statistics.data.gov.uk/id/local-authority/47UB,Bromsgrove District Council,14/08/2015,3572,01202214952,12.50,E E Limited,3656,Executive Director Of Finance,Mobile Phone,4455
http://statistics.data.gov.uk/id/local-authority/47UB,Bromsgrove District Council,14/08/2015,3572,01202214952,12.50,E E Limited,3656,Executive Director Of Finance,Mobile Phone,4455
http://statistics.data.gov.uk/id/local-authority/47UB,Bromsgrove District Council,14/08/2015,3572,01202214952,323.00,E E Limited,3656,Executive Director Of Finance,Mobile Phone,4455
http://statistics.data.gov.uk/id/local-authority/47UB,Bromsgrove District Council,14/08/2015,3572,01202214952,145.50,E E Limited,3656,Executive Director Planning,Mobile Phone,4455
http://statistics.data.gov.uk/id/local-authority/47UB,Bromsgrove District Council,14/08/2015,3572,01202214952,28.00,E E Limited,3656,Executive Director Planning,Mobile Phone,4455
http://statistics.data.gov.uk/id/local-authority/47UB,Bromsgrove District Council,14/08/2015,3572,01202214952,25.00,E E Limited,3656,Executive Director Planning,Mobile Phone,4455
http://statistics.data.gov.uk/id/local-authority/47UB,Bromsgrove District Council,14/08/2015,3572,01202214952,35.00,E E Limited,3656,Executive Director Planning,Mobile Phone,4455
http://statistics.data.gov.uk/id/local-authority/47UB,Bromsgrove District Council,14/08/2015,3572,01202214952,28.50,E E Limited,3656,Holding - Central,Mobile Phone,4455
http://statistics.data.gov.uk/id/local-authority/47UB,Bromsgrove District Council,14/08/2015,3572,01202214952,67.68,E E Limited,3656,Licensing,Mobile Phone,4455
http://statistics.data.gov.uk/id/local-authority/47UB,Bromsgrove District Council,14/08/2015,3572,01202214952,57.00,E E Limited,3656,Management Costs,Mobile Phone,4455
http://statistics.data.gov.uk/id/local-authority/47UB,Bromsgrove District Council,14/08/2015,3572,01202214952,24.50,E E Limited,3656,Support,Mobile Phone,4455
http://statistics.data.gov.uk/id/local-authority/47UB,Bromsgrove District Council,14/08/2015,3572,01202214952,159.50,E E Limited,3656,Technical Pollution,Mobile Phone,4455
http://statistics.data.gov.uk/id/local-authority/47UB,Bromsgrove District Council,14/08/2015,3572,01202214952,80.13,E E Limited,3656,Trading Standards / Animal Hea,Mobile Phone,4455
http://statistics.data.gov.uk/id/local-authority/47UB,Bromsgrove District Council,14/08/2015,3572,01202214952,6.00,E E Limited,3656,Trading Standards / Animal Hea,Mobile Phone,4455
http://statistics.data.gov.uk/id/local-authority/47UB,Bromsgrove District Council,28/08/2015,3473,038847,"56,570.00",Hags-Smp,366,Capital Schemes Culture & Leis,Other Contract Payments,8155
http://statistics.data.gov.uk/id/local-authority/47UB,Bromsgrove District Council,07/08/2015,3030,4360,"2,850.00",West Midlands Employers,422,Chief Executive,Subscriptions,4650
http://statistics.data.gov.uk/id/local-authority/47UB,Bromsgrove District Council,14/08/2015,3559,642,"1,005.00",Victoria Solutions Limited,4579,Executive Director Of Finance,Software Maintenance,4503
http://statistics.data.gov.uk/id/local-authority/47UB,Bromsgrove District Council,14/08/2015,3179,3400,"8,295.00",Kelbec Civils Ltd,4794,Executive Director And Deputy ,Project Work,4733
http://statistics.data.gov.uk/id/local-authority/47UB,Bromsgrove District Council,28/08/2015,2236,5240251,518.97,Chubb Electronic Security Ltd,5012,Executive Director And Deputy ,Ext Repair/Maint.(Reg'D For Gr,3552
http://statistics.data.gov.uk/id/local-authority/47UB,Bromsgrove District Council,07/08/2015,2463,538513,"21,413.00",Harvest Energy Limited,5136,Bdc Balance Sheet,Cbs - Stores Account,1210
http://statistics.data.gov.uk/id/local-authority/47UB,Bromsgrove District Council,07/08/2015,3002,542971,"21,107.10",Harvest Energy Limited,5136,Bdc Balance Sheet,Cbs - Stores Account,1210
http://statistics.data.gov.uk/id/local-authority/47UB,Bromsgrove District Council,28/08/2015,3680,547163,"20,264.49",Harvest Energy Limited,5136,Bdc Balance Sheet,Cbs - Stores Account,1210
http://statistics.data.gov.uk/id/local-authority/47UB,Bromsgrove District Council,07/08/2015,2418,RINV/00005723,"2,626.49",Bdht,5159,Executive Director And Deputy ,Misc. Expenses,4730
http://statistics.data.gov.uk/id/local-authority/47UB,Bromsgrove District Council,07/08/2015,3342,SC&R/00000121,"114,406.90",Festival Housing,5190,Executive Director And Deputy ,Other Local Authorities,5016
http://statistics.data.gov.uk/id/local-authority/47UB,Bromsgrove District Council,07/08/2015,2781,6726,420.00,Kernon Countryside Consultant,5323,Executive Director Planning,Consultants Fees,4351
http://statistics.data.gov.uk/id/local-authority/47UB,Bromsgrove District Council,28/08/2015,2717,8388438,"11,685.00",Grant Thornton Uk Llp,5364,Chief Executive,Audit Fees,4359
http://statistics.data.gov.uk/id/local-authority/47UB,Bromsgrove District Council,28/08/2015,2718,8385426,"16,901.00",Grant Thornton Uk Llp,5364,Chief Executive,Audit Fees,4359
http://statistics.data.gov.uk/id/local-authority/47UB,Bromsgrove District Council,14/08/2015,3083,IN13137,"1,627.30",Matrix Scm Ltd,5367,Executive Director And Deputy ,Agency Staff,3020
http://statistics.data.gov.uk/id/local-authority/47UB,Bromsgrove District Council,14/08/2015,3083,IN13137,"3,837.73",Matrix Scm Ltd,5367,Executive Director And Deputy ,Agency Staff,3020
http://statistics.data.gov.uk/id/local-authority/47UB,Bromsgrove District Council,14/08/2015,3083,IN13137,826.99,Matrix Scm Ltd,5367,Executive Director And Deputy ,Agency Staff,3020
http://statistics.data.gov.uk/id/local-authority/47UB,Bromsgrove District Council,14/08/2015,3083,IN13137,512.40,Matrix Scm Ltd,5367,Licensing,Agency Staff,3020
http://statistics.data.gov.uk/id/local-authority/47UB,Bromsgrove District Council,14/08/2015,3255,IN13198,"1,224.00",Matrix Scm Ltd,5367,Executive Director And Deputy ,Agency Staff,3020
http://statistics.data.gov.uk/id/local-authority/47UB,Bromsgrove District Council,14/08/2015,3255,IN13198,762.42,Matrix Scm Ltd,5367,Executive Director And Deputy ,Agency Staff,3020
http://statistics.data.gov.uk/id/local-authority/47UB,Bromsgrove District Council,14/08/2015,3255,IN13198,"4,330.22",Matrix Scm Ltd,5367,Executive Director And Deputy ,Agency Staff,3020
http://statistics.data.gov.uk/id/local-authority/47UB,Bromsgrove District Council,14/08/2015,3255,IN13198,826.99,Matrix Scm Ltd,5367,Executive Director And Deputy ,Agency Staff,3020
http://statistics.data.gov.uk/id/local-authority/47UB,Bromsgrove District Council,14/08/2015,3255,IN13198,549.00,Matrix Scm Ltd,5367,Licensing,Agency Staff,3020
http://statistics.data.gov.uk/id/local-authority/47UB,Bromsgrove District Council,07/08/2015,3335,IN13257,"1,437.86",Matrix Scm Ltd,5367,Executive Director And Deputy ,Agency Staff,3020
http://statistics.data.gov.uk/id/local-authority/47UB,Bromsgrove District Council,07/08/2015,3335,IN13257,387.76,Matrix Scm Ltd,5367,Executive Director And Deputy ,Agency Staff,3020
http://statistics.data.gov.uk/id/local-authority/47UB,Bromsgrove District Council,07/08/2015,3335,IN13257,"4,228.11",Matrix Scm Ltd,5367,Executive Director And Deputy ,Agency Staff,3020
http://statistics.data.gov.uk/id/local-authority/47UB,Bromsgrove District Council,07/08/2015,3335,IN13257,423.67,Matrix Scm Ltd,5367,Executive Director And Deputy ,Agency Staff,3020
http://statistics.data.gov.uk/id/local-authority/47UB,Bromsgrove District Council,07/08/2015,3335,IN13257,424.56,Matrix Scm Ltd,5367,Licensing,Agency Staff,3020
http://statistics.data.gov.uk/id/local-authority/47UB,Bromsgrove District Council,21/08/2015,3655,IN13316,"1,299.09",Matrix Scm Ltd,5367,Executive Director And Deputy ,Agency Staff,3020
http://statistics.data.gov.uk/id/local-authority/47UB,Bromsgrove District Council,21/08/2015,3655,IN13316,"3,071.47",Matrix Scm Ltd,5367,Executive Director And Deputy ,Agency Staff,3020
http://statistics.data.gov.uk/id/local-authority/47UB,Bromsgrove District Council,21/08/2015,3655,IN13316,336.72,Matrix Scm Ltd,5367,Licensing,Agency Staff,3020
http://statistics.data.gov.uk/id/local-authority/47UB,Bromsgrove District Council,14/08/2015,3223,3001222,"5,250.00",Craemer Uk Limited,5471,Bdc Balance Sheet,Received Not Invoiced,2096
http://statistics.data.gov.uk/id/local-authority/47UB,Bromsgrove District Council,14/08/2015,3223,3001222,0.00,Craemer Uk Limited,5471,Bdc Balance Sheet,Cbs - Stores Account,1210
http://statistics.data.gov.uk/id/local-authority/47UB,Bromsgrove District Council,28/08/2015,3577,3001420,"11,788.80",Craemer Uk Limited,5471,Bdc Balance Sheet,Received Not Invoiced,2096
http://statistics.data.gov.uk/id/local-authority/47UB,Bromsgrove District Council,28/08/2015,3577,3001420,0.00,Craemer Uk Limited,5471,Bdc Balance Sheet,Cbs - Stores Account,1210
http://statistics.data.gov.uk/id/local-authority/47UB,Bromsgrove District Council,28/08/2015,3578,3001419,"11,788.80",Craemer Uk Limited,5471,Bdc Balance Sheet,Received Not Invoiced,2096
http://statistics.data.gov.uk/id/local-authority/47UB,Bromsgrove District Council,28/08/2015,3578,3001419,0.00,Craemer Uk Limited,5471,Bdc Balance Sheet,Cbs - Stores Account,1210
http://statistics.data.gov.uk/id/local-authority/47UB,Bromsgrove District Council,28/08/2015,3579,3001418,"3,561.20",Craemer Uk Limited,5471,Bdc Balance Sheet,Received Not Invoiced,2096
http://statistics.data.gov.uk/id/local-authority/47UB,Bromsgrove District Council,28/08/2015,3579,3001418,0.00,Craemer Uk Limited,5471,Bdc Balance Sheet,Cbs - Stores Account,1210
http://statistics.data.gov.uk/id/local-authority/47UB,Bromsgrove District Council,28/08/2015,3579,3001418,"3,561.20",Craemer Uk Limited,5471,Bdc Balance Sheet,Received Not Invoiced,2096
http://statistics.data.gov.uk/id/local-authority/47UB,Bromsgrove District Council,28/08/2015,3579,3001418,0.00,Craemer Uk Limited,5471,Bdc Balance Sheet,Cbs - Stores Account,1210
http://statistics.data.gov.uk/id/local-authority/47UB,Bromsgrove District Council,28/08/2015,3507,SL03347443INV,837.00,Northgate Vehicle Hire Ltd,5573,Executive Director And Deputy ,Contract Hire Of Vehicles,3761
http://statistics.data.gov.uk/id/local-authority/47UB,Bromsgrove District Council,21/08/2015,3528,1691688,"2,088.00",Kiddivouchers,5766,Bdc Balance Sheet,Payroll Deductions,1488
http://statistics.data.gov.uk/id/local-authority/47UB,Bromsgrove District Council,21/08/2015,3528,1691688,20.88,Kiddivouchers,5766,Business Transformation,Childminding Allowances,3014
http://statistics.data.gov.uk/id/local-authority/47UB,Bromsgrove District Council,14/08/2015,1348,12081,"2,897.00",Trash Uk Limited,5787,Executive Director And Deputy ,Vehicle Repairs/Maint'Ce,3757
http://statistics.data.gov.uk/id/local-authority/47UB,Bromsgrove District Council,21/08/2015,2245,12616,"2,000.70",Jade Security Services Ltd,5886,Executive Director Of Finance,Contractors,3701
http://statistics.data.gov.uk/id/local-authority/47UB,Bromsgrove District Council,21/08/2015,2810,12698,"1,955.10",Jade Security Services Ltd,5886,Executive Director Of Finance,Contractors,3701
http://statistics.data.gov.uk/id/local-authority/47UB,Bromsgrove District Council,14/08/2015,3235,40141990,"1,713.24",Local Government Association,59941,Bdc Balance Sheet,Consultants Fees,4351
http://statistics.data.gov.uk/id/local-authority/47UB,Bromsgrove District Council,21/08/2015,1579,E35297,675.50,Optum Health Solutions (Uk) Ltd,60057,Management Costs,Contractors,5158
http://statistics.data.gov.uk/id/local-authority/47UB,Bromsgrove District Council,28/08/2015,3497,UK10/072015/413,770.00,Vodafone,60359,Business Transformation,Internet,4213
http://statistics.data.gov.uk/id/local-authority/47UB,Bromsgrove District Council,14/08/2015,3498,UK10/072015/464,"2,631.07",Vodafone,60359,Business Transformation,Gcsx Costs,4755
http://statistics.data.gov.uk/id/local-authority/47UB,Bromsgrove District Council,28/08/2015,3499,UK10/072015/303,"2,656.62",Vodafone,60359,Business Transformation,Gcsx Costs,4755
http://statistics.data.gov.uk/id/local-authority/47UB,Bromsgrove District Council,21/08/2015,3207,10583,900.00,Professional Vision Services,60738,Business Transformation,Training,3043
http://statistics.data.gov.uk/id/local-authority/47UB,Bromsgrove District Council,21/08/2015,3207,10583,595.00,Professional Vision Services,60738,Executive Director Of Finance,Software,8162
http://statistics.data.gov.uk/id/local-authority/47UB,Bromsgrove District Council,21/08/2015,3207,10583,"2,995.00",Professional Vision Services,60738,Executive Director Of Finance,Software,8162
http://statistics.data.gov.uk/id/local-authority/47UB,Bromsgrove District Council,21/08/2015,3363,30451,157.08,Wasteparts Uk Ltd,6098,Bdc Balance Sheet,Received Not Invoiced,2096
http://statistics.data.gov.uk/id/local-authority/47UB,Bromsgrove District Council,21/08/2015,3363,30451,0.00,Wasteparts Uk Ltd,6098,Bdc Balance Sheet,Cbs - Stores Account,1210
http://statistics.data.gov.uk/id/local-authority/47UB,Bromsgrove District Council,21/08/2015,3363,30451,464.00,Wasteparts Uk Ltd,6098,Bdc Balance Sheet,Received Not Invoiced,2096
http://statistics.data.gov.uk/id/local-authority/47UB,Bromsgrove District Council,21/08/2015,3363,30451,0.00,Wasteparts Uk Ltd,6098,Bdc Balance Sheet,Cbs - Stores Account,1210
http://statistics.data.gov.uk/id/local-authority/47UB,Bromsgrove District Council,21/08/2015,3363,30451,691.60,Wasteparts Uk Ltd,6098,Bdc Balance Sheet,Received Not Invoiced,2096
http://statistics.data.gov.uk/id/local-authority/47UB,Bromsgrove District Council,21/08/2015,3363,30451,0.00,Wasteparts Uk Ltd,6098,Bdc Balance Sheet,Cbs - Stores Account,1210
http://statistics.data.gov.uk/id/local-authority/47UB,Bromsgrove District Council,21/08/2015,3363,30451,31.08,Wasteparts Uk Ltd,6098,Bdc Balance Sheet,Received Not Invoiced,2096
http://statistics.data.gov.uk/id/local-authority/47UB,Bromsgrove District Council,21/08/2015,3363,30451,0.00,Wasteparts Uk Ltd,6098,Bdc Balance Sheet,Cbs - Stores Account,1210
http://statistics.data.gov.uk/id/local-authority/47UB,Bromsgrove District Council,21/08/2015,3363,30451,2.40,Wasteparts Uk Ltd,6098,Bdc Balance Sheet,Stock Variance,1203
http://statistics.data.gov.uk/id/local-authority/47UB,Bromsgrove District Council,14/08/2015,3550,59159,"1,809.00",Trent Pottery And Furniture,61215,Executive Director Of Finance,Ward Budget,4757
http://statistics.data.gov.uk/id/local-authority/47UB,Bromsgrove District Council,07/08/2015,3386,RENT IN ADVANCE,550.00,REDACTED DATA,61216,Executive Director And Deputy ,Rents,3350
http://statistics.data.gov.uk/id/local-authority/47UB,Bromsgrove District Council,07/08/2015,3387,RENT IN ADVANCE,595.00,REDACTED DATA,61217,Executive Director And Deputy ,Rents,3350
http://statistics.data.gov.uk/id/local-authority/47UB,Bromsgrove District Council,28/08/2015,3845,106078,"18,957.50",Incom Business Systems Ltd,61312,Business Transformation,Telephone Maintenance,4453
http://statistics.data.gov.uk/id/local-authority/47UB,Bromsgrove District Council,28/08/2015,3845,106078,"18,957.50",Incom Business Systems Ltd,61312,Business Transformation,Telephone Maintenance,4453
http://statistics.data.gov.uk/id/local-authority/47UB,Bromsgrove District Council,28/08/2015,3692,9049707707,579.11,Royal Mail Group Ltd,6135,Executive Director Of Finance,Election Costs,4207
http://statistics.data.gov.uk/id/local-authority/47UB,Bromsgrove District Council,28/08/2015,3692,9049707707,289.55,Royal Mail Group Ltd,6135,Executive Director Of Finance,Election Costs,4207
http://statistics.data.gov.uk/id/local-authority/47UB,Bromsgrove District Council,28/08/2015,3692,9049707707,289.55,Royal Mail Group Ltd,6135,Executive Director Of Finance,Election Costs,4207
http://statistics.data.gov.uk/id/local-authority/47UB,Bromsgrove District Council,14/08/2015,597,53894,431.25,Whiting Landscape Ltd,6514,Capital Schemes Planning And R,Other Contract Payments,8155
http://statistics.data.gov.uk/id/local-authority/47UB,Bromsgrove District Council,21/08/2015,3739,9101,"3,275.90",Snape Construction,6606,Capital Schemes Community,Disabled Facilities Grant,8701
http://statistics.data.gov.uk/id/local-authority/47UB,Bromsgrove District Council,14/08/2015,3043,SN002141228,61.92,Berendsen Uk Ltd,6906,Executive Director And Deputy ,Office Equipment Hire & Rental,4001
http://statistics.data.gov.uk/id/local-authority/47UB,Bromsgrove District Council,14/08/2015,3043,SN002141228,128.24,Berendsen Uk Ltd,6906,Executive Director And Deputy ,Office Equipment Hire & Rental,4001
http://statistics.data.gov.uk/id/local-authority/47UB,Bromsgrove District Council,14/08/2015,3043,SN002141228,105.08,Berendsen Uk Ltd,6906,Executive Director And Deputy ,Office Equipment Hire & Rental,4001
http://statistics.data.gov.uk/id/local-authority/47UB,Bromsgrove District Council,14/08/2015,3043,SN002141228,176.00,Berendsen Uk Ltd,6906,Executive Director And Deputy ,Office Equipment Hire & Rental,4001
http://statistics.data.gov.uk/id/local-authority/47UB,Bromsgrove District Council,14/08/2015,3044,SN002107435,41.92,Berendsen Uk Ltd,6906,Executive Director And Deputy ,Office Equipment Hire & Rental,4001
http://statistics.data.gov.uk/id/local-authority/47UB,Bromsgrove District Council,14/08/2015,3044,SN002107435,128.24,Berendsen Uk Ltd,6906,Executive Director And Deputy ,Office Equipment Hire & Rental,4001
http://statistics.data.gov.uk/id/local-authority/47UB,Bromsgrove District Council,14/08/2015,3044,SN002107435,105.08,Berendsen Uk Ltd,6906,Executive Director And Deputy ,Office Equipment Hire & Rental,4001
http://statistics.data.gov.uk/id/local-authority/47UB,Bromsgrove District Council,14/08/2015,3044,SN002107435,176.00,Berendsen Uk Ltd,6906,Executive Director And Deputy ,Office Equipment Hire & Rental,4001
http://statistics.data.gov.uk/id/local-authority/47UB,Bromsgrove District Council,21/08/2015,2238,4000199685/,"4,303.97",Severn Trent Water Ltd,6935,Executive Director And Deputy ,Water Charges,3450
http://statistics.data.gov.uk/id/local-authority/47UB,Bromsgrove District Council,21/08/2015,2395,4000202325,"4,125.60",Severn Trent Water Ltd,6935,Executive Director And Deputy ,Water Charges,3450
http://statistics.data.gov.uk/id/local-authority/47UB,Bromsgrove District Council,21/08/2015,2871,4000207848,"3,352.99",Severn Trent Water Ltd,6935,Executive Director And Deputy ,Water Charges,3450
http://statistics.data.gov.uk/id/local-authority/47UB,Bromsgrove District Council,14/08/2015,1570,970632,"1,452.00",Disclosure & Barring Service,701,Licensing,Security Checks,3038
http://statistics.data.gov.uk/id/local-authority/47UB,Bromsgrove District Council,28/08/2015,3841,974236,"1,628.00",Disclosure & Barring Service,701,Licensing,Security Checks,3038
http://statistics.data.gov.uk/id/local-authority/47UB,Bromsgrove District Council,28/08/2015,3842,985315,"1,804.00",Disclosure & Barring Service,701,Licensing,Security Checks,3038
http://statistics.data.gov.uk/id/local-authority/47UB,Bromsgrove District Council,28/08/2015,3843,981712,"2,068.00",Disclosure & Barring Service,701,Licensing,Security Checks,3038
http://statistics.data.gov.uk/id/local-authority/47UB,Bromsgrove District Council,28/08/2015,3844,978113,"1,804.00",Disclosure & Barring Service,701,Licensing,Security Checks,3038
http://statistics.data.gov.uk/id/local-authority/47UB,Bromsgrove District Council,21/08/2015,3734,665212,"2,533.33",Dodd Group,7087,Capital Schemes Community,Disabled Facilities Grant,8701
http://statistics.data.gov.uk/id/local-authority/47UB,Bromsgrove District Council,21/08/2015,3736,664493,"2,984.55",Dodd Group,7087,Capital Schemes Community,Disabled Facilities Grant,8701
http://statistics.data.gov.uk/id/local-authority/47UB,Bromsgrove District Council,21/08/2015,3742,664494,"2,639.98",Dodd Group,7087,Capital Schemes Community,Disabled Facilities Grant,8701
http://statistics.data.gov.uk/id/local-authority/47UB,Bromsgrove District Council,21/08/2015,3738,5350,"5,472.00",D S I Property Consultants Ltd,7122,Capital Schemes Community,Disabled Facilities Grant,8701
http://statistics.data.gov.uk/id/local-authority/47UB,Bromsgrove District Council,07/08/2015,3337,1594,804.00,Positive Environmental Ltd,7206,Technical Pollution,Contractors,5158
http://statistics.data.gov.uk/id/local-authority/47UB,Bromsgrove District Council,21/08/2015,3455,1658,"1,066.00",Positive Environmental Ltd,7206,Technical Pollution,Contractors,5158
http://statistics.data.gov.uk/id/local-authority/47UB,Bromsgrove District Council,21/08/2015,3455,1658,161.00,Positive Environmental Ltd,7206,Technical Pollution,Contractors,5158
http://statistics.data.gov.uk/id/local-authority/47UB,Bromsgrove District Council,28/08/2015,3638,1690,893.50,Positive Environmental Ltd,7206,Technical Pollution,Contractors,5158
http://statistics.data.gov.uk/id/local-authority/47UB,Bromsgrove District Council,14/08/2015,3573,AU/22/8921479,720.00,Heart Of Worcestershire College,7332,Bdc Balance Sheet,Cashiers And Imprest,2018
http://statistics.data.gov.uk/id/local-authority/47UB,Bromsgrove District Council,21/08/2015,3741,843,"1,866.81",Sunridge Builders Ltd,7474,Capital Schemes Community,Disabled Facilities Grant,8701
